Cogmind - Beta 14 @@@ ROGUE MODE // 2024.12.02 @ 02:48:38 Player: Fangrelle Result: Destroyed by M5-ROD(R) with Subdweller Laser Performance ------------- Evolutions (0) 0 Regions Visited (2) 400 Robots Destroyed (35) 175 Value Destroyed (871) 871 Prototype IDs (0) 0 Alien Tech Used (0) 0 Bonus (0) 0 TOTAL SCORE: 1446 Bonus ------- None Cogmind --------- Core Integrity 0/250 Matter 300/300 Energy 100/100 System Corruption 0% Temperature Cool (6) Movement Treading (480) Ox4 Location -10/Subcaves Parts ------- > --- POWER (1) -------- Subdweller Power Source > --- PROPULSION (2) --- Light Treads > --- UTILITY (2) ------ Huge Storage Unit > --- WEAPON (2) ------- Subdweller Machine Gun Makeshift Spear > --- INVENTORY (25) --- Subdweller Power Source Light Treads High-capacity Storage Unit High-capacity Matter Pod (200) Seismic Detector Utility Shielding Weapon Shielding Tractor Beam Tractor Beam EM Pulse Gun EM Pulse Gun Assault Rifle Light Cannon Datajack Mining Laser Multitool Hammer Hammer Hammer Hammer Piercing Trap Peak State ------------ > --- POWER ------------ Subdweller Power Source > --- PROPULSION ------- Light Treads Light Treads > --- UTILITY ---------- Huge Storage Unit Light Armor Plating > --- WEAPON ----------- Subdweller Machine Gun Makeshift Spear > --- INVENTORY -------- Subdweller Power Source Light Treads High-capacity Storage Unit High-capacity Matter Pod Seismic Detector Utility Shielding Weapon Shielding Tractor Beam Tractor Beam EM Pulse Gun EM Pulse Gun Assault Rifle Light Cannon Datajack Mining Laser Multitool Hammer Hammer Hammer Hammer [Rating: 14] Favorites ----------- Power Subdweller Power Source Engine Subdweller Power Source Propulsion Light Treads Treads Light Treads Leg Aluminum Leg Utility Huge Storage Unit Device Seismic Detector Storage Huge Storage Unit Processor Targeting Computer Protection Light Armor Plating Weapon Hammer Energy Gun EM Pulse Gun Ballistic Gun Subdweller Machine Gun Impact Weapon Hammer Piercing Weapon Makeshift Spear Build | -11 -10 -10 ------- Run | Yrd Mat Sub Slots Evolved . | . . . Power . | . . . Propulsion . | . . . Utility . | . . . Weapon . | . . . Parts Attached 30 | . 23 7 Power 2 | . 1 1 Engine 2 | . 1 1 Core . | . . . Reactor . | . . . Propulsion 7 | . 5 2 Treads 7 | . 5 2 Leg . | . . . Wheel . | . . . Hover . | . . . Flight . | . . . Utility 9 | . 7 2 Device 3 | . 2 1 Storage 3 | . 3 . Processor 1 | . 1 . Hackware . | . . . Protection 2 | . 1 1 Artifact . | . . . Weapon 12 | . 10 2 Energy Gun 6 | . 6 . Energy Cannon . | . . . Ballistic Gun 1 | . . 1 Ballistic Cannon . | . . . Launcher . | . . . Special Weapon . | . . . Impact Weapon 4 | . 4 . Slashing Weapon . | . . . Piercing Weapon 1 | . . 1 Special Melee Weapon . | . . . Unidentified Prototypes . | . . . Parts Lost 7 | . 5 2 Power 1 | . 1 . Propulsion 3 | . 2 1 Utility 2 | . 1 1 Weapon 1 | . 1 . Highest Loss Streak 2 | . 1 2 To Critical Strikes . | . . . Average Slot Usage (%) 91 | . 89 95 Engine 7 | . 6 9 Treads 25 | . 23 27 Device 8 | . 8 7 Storage 14 | . 14 14 Protection 5 | . 3 6 Energy Gun 3 | . 6 . Ballistic Gun 3 | . 1 6 Impact Weapon 15 | . 20 9 Piercing Weapon 5 | . . 12 Peak Build Rating 14 | . 8 14 Average Rating 9 | . 6 11 On Entrance 6 | 6 6 7 Naked Turns . | . . . Heaviest Build 94 | 10 85 94 Greatest Support 40 | 20 40 40 Greatest Overweight (x) 4 | . 4 4 Average Overweight (x) 1 | . 1 2 Largest Inventory Capacity 25 | . 25 25 Average Capacity 22 | . 20 25 Most Carried 21 | . 16 21 Average Carried 14 | . 10 18 Final Capacity 25 | 8 25 25 Final Carried 21 | 6 16 21 Class Distribution -------------------- 80% | Mutant 19% | Scavenger-Mutant Dominant Class ---------------- Mutant | -10/Materials Mutant | -10/Subcaves Resources | -11 -10 -10 ----------- Run | Yrd Mat Sub Matter Collected 707 | 200 437 70 Remotely . | . . . Salvage Created 1193 | . 955 238 Parts 57 | . 42 15 Haulers Intercepted 2 | . 2 . Recyclers Shooed . | . . . Parts Field Recycled . | . . . Retrieved Matter . | . . . Parts Self-Destructed 18 | . . 18 Prevented . | . . . Kills | -11 -10 -10 ------- Run | Yrd Mat Sub Combat Hostiles Destroyed 25 | . 20 5 Melee 12 | . 7 5 Guns 7 | . 7 . AOE 1 | . 1 . Classes Destroyed 10 | . 8 2 Worker 2 | . 2 . Hauler 2 | . 2 . Recycler 1 | . 1 . Mechanic 1 | . 1 . Operator 2 | . 2 . Watcher 2 | . 2 . Swarmer 6 | . 6 . Grunt 14 | . 14 . Sentry 2 | . . 2 Subdweller 3 | . . 3 Best Kill Streak 8 | . 8 1 Combat Bots Only 3 | . 3 1 Max Kills in Single Turn 1 | . 1 1 Gunslinging . | . . . Exploded 1 | . 1 . Melee 1 | . 1 1 Uniques/NPCs Destroyed . | . . . Combat | -11 -10 -10 -------- Run | Yrd Mat Sub Hostile Shots Fired 157 | . 110 47 Missed 48 | . 35 13 Damage Taken 1435 | . 824 611 Core 251 | . 142 109 Absorbed by Shields . | . . . Regen/Repaired (Parts) 38 | . 38 . Core Remaining (%) 100 | 100 . . Volleys Fired 26 | . 26 . Largest 2 | . 2 . Hottest 80 | . 80 . Shots Fired 48 | . 48 . Gun 48 | . 48 . Cannon . | . . . Launcher . | . . . Special . | . . . Kinetic 12 | . 12 . Thermal 4 | . 4 . Explosive . | . . . Electromagnetic 32 | . 32 . Robot Hit Streak 11 | . 11 . Robot Miss Streak 2 | . 2 . Penetration Max . | . . . Secondary Targets 2 | . 2 . Max Gunslinging Chain 1 | . 1 . Shots Hit Robots 113 | . 89 24 Core Hits 27 | . 22 5 Critical Kills 1 | . 1 . Critical Parts Destroyed 5 | . 5 . Critical Strikes 9 | . 6 3 Smash 6 | . 6 . Impale 3 | . . 3 Melee Attacks 115 | . 68 47 Impact 71 | . 68 3 Slashing . | . . . Piercing 44 | . . 44 Sneak Attacks 11 | . 10 1 Combat Hostiles 2 | . 1 1 Follow-up Attacks 12 | . 11 1 Damage Inflicted 2886 | . 2222 664 Guns 426 | . 426 . Cannons . | . . . Explosions 101 | . 101 . Melee 2359 | . 1695 664 Ramming . | . . . Kinetic 72 | . 72 . Thermal 134 | . 134 . Explosive . | . . . Electromagnetic 321 | . 321 . Impact 1713 | . 1695 18 Slashing . | . . . Piercing 646 | . . 646 Highest Corruption . | . . . Average Corruption . | . . . Corruption Purged . | . . . Corruption Blocked . | . . . Overload Shots . | . . . Overflow Damage 324 | . 324 . Projectiles . | . . . Explosions . | . . . Melee 324 | . 324 . Knockbacks 11 | . 11 . Impact 11 | . 11 . Kinetic . | . . . Secondary . | . . . Self-Inflicted Damage . | . . . Shots . | . . . Rammed . | . . . Targets Rammed . | . . . Kicked . | . . . Crushed . | . . . Highest Temperature 106 | . 106 . Average Temperature 45 | . 45 . Received Heat Transfer 567 | . 405 162 Siege Activations . | . . . Robots Corrupted 7 | . 7 . Combat Hostiles 5 | . 5 . Parts Fried 9 | . 9 . Impact Corruptions 22 | . 22 . Robots Melted . | . . . Combat Hostiles . | . . . Parts Melted 1 | . 1 . Heat Transferred 225 | . 225 . Parts Sabotaged . | . . . Parts Stolen . | . . . Parts Stripped . | . . . Power Chain Reactions 2 | . 2 . Alert | -11 -10 -10 ------- Run | Yrd Mat Sub Peak Influence 372 | . 372 . Initial . | . . . Average 164 | . 164 . Maximum Alert Level 1 | . 1 . Low Security (%) 56 | . 56 . Level 1 43 | . 43 . Level 2 . | . . . Level 3 . | . . . Level 4 . | . . . Level 5 . | . . . High Security . | . . . Max Security . | . . . Squads Dispatched 4 | . 4 . Investigation 2 | . 2 . Extermination . | . . . Reinforcement 2 | . 2 . Assault . | . . . Garrison . | . . . Intercept . | . . . Searches Triggered . | . . . Construction Impeded . | . . . Haulers Reinforced . | . . . Active Scanning Responses . | . . . Cargo Convoy Interrupts . | . . . Stealth | -11 -10 -10 --------- Run | Yrd Mat Sub Distress Signals 2 | . 2 . Communications Jammed . | . . . Distress Signals . | . . . Times Spotted 43 | . 37 6 Peak Tracking Total 5 | . 5 2 Tactical Retreats 5 | . 5 . Traps | -11 -10 -10 ------- Run | Yrd Mat Sub Traps Triggered 1 | . 1 . Indirectly . | . . . Trap Hack Attempts . | . . . Triggered . | . . . Disarmed . | . . . Reprogrammed . | . . . Reused . | . . . Traps Extracted . | . . . Installed . | . . . Triggered 2 | . . 2 Most Traps Carried 1 | . . 1 Machines | -11 -10 -10 ---------- Run | Yrd Mat Sub Machines Disabled 1 | . 1 . Max in Single Turn 1 | . 1 . Machines Repaired . | . . . Machines Dismantled . | . . . Machines Sabotaged . | . . . Overloaded Fab Kills . | . . . Hacking | -11 -10 -10 --------- Run | Yrd Mat Sub Machines Accessed 9 | . 8 1 Terminals 6 | . 6 . Fabricators . | . . . Repair Stations 1 | . 1 . Recycling Units 1 | . 1 . Scanalyzers . | . . . Garrison Access . | . . . Total Hacks 27 | . 23 4 Successful 15 | . 11 4 Failed 12 | . 12 . Catastrophic 2 | . 2 . Database Lockouts . | . . . Manual 19 | . 19 . Terminals 18 | . 18 . Fabricators . | . . . Repair Stations 2 | . 2 . Recycling Units 3 | . 3 . Scanalyzers . | . . . Garrison Access . | . . . Terminal Hacks 4 | . . 4 Record 4 | . . 4 Fabricator Hacks . | . . . Repair Station Hacks 2 | . 2 . Scan Component 1 | . 1 . Repair 1 | . 1 . Recycling Unit Hacks 1 | . 1 . Retrieve Components 1 | . 1 . Scanalyzer . | . . . Garrison Access Hacks . | . . . Unauthorized Hacks 8 | . 8 . Terminals 7 | . 7 . Assimilate 3 | . 3 . Botnet 4 | . 4 . Fabricators . | . . . Repair Stations . | . . . Recycling Units 1 | . 1 . Tunnel 1 | . 1 . Scanalyzers . | . . . Garrison Access . | . . . Data Cores Recovered . | . . . Used . | . . . Hacking Detections 6 | . 6 . Full Trace Events 1 | . 1 . Feedback Events . | . . . Feedback Blocked . | . . . Robot Schematics Acquired . | . . . Robots Built . | . . . Authchips . | . . . Time . | . . . Total Robot Build Rating . | . . . Part Schematics Acquired . | . . . Parts Built . | . . . Authchips . | . . . Time . | . . . Total Part Build Rating . | . . . Parts Repaired 1 | . 1 . Time 26 | . 26 . Parts Recycled . | . . . Recycled Matter . | . . . Retrieved Matter . | . . . Retrieved Components 10 | . 10 . Parts Scanalyzed . | . . . Part Schematics Acquired . | . . . Parts Damaged . | . . . Bothacking | -11 -10 -10 ------------ Run | Yrd Mat Sub Used RIF Installer . | . . . Robots Hacked . | . . . Non-combat . | . . . Combat . | . . . Robot Hacks Applied . | . . . Relay Couplers Released . | . . . Fabnet Peak Effective % . | . . . Robots Rewired . | . . . Allies Hacked . | . . . Hacks Repelled . | . . . Allies | -11 -10 -10 -------- Run | Yrd Mat Sub Total Allies 1 | . 1 . Largest Group 1 | . 1 . Highest-Rated Group 10 | . 10 . Highest-Rated Ally 10 | . 10 . Total Orders 1 | . 1 . STAY 1 | . 1 . Ally Attacks . | . . . Total Damage . | . . . Kills . | . . . Allies Corrupted . | . . . Allies Melted . | . . . Intel | -11 -10 -10 ------- Run | Yrd Mat Sub Robot Analysis Total . | . . . Derelict Logs Recovered . | . . . Drone Launches . | . . . Drone Recoveries . | . . . Exploration | -11 -10 -10 ------------- Run | Yrd Mat Sub Turns Passed 4174 | . 2311 1863 Spaces Moved 1274 | 1 736 537 Core . | . . . Treads 1201 | . 664 537 Legs 73 | 1 72 . Wheels . | . . . Hover . | . . . Flight . | . . . Fastest Speed 120 | 120 120 320 Average Speed 280 | 120 251 320 Slowest Speed 480 | 120 480 480 Overloaded Moves . | . . . Propulsion Burnouts . | . . . Robots Hopped . | . . . Cave-ins Triggered . | . . . Exploration Rate (%) 42 | 2 95 30 Regions Visited 2 Branch Regions 1 Pre-discovered Areas 1 | . 1 . Known Exits Taken . | . . . Unknown Exits Taken 2 | 1 1 . Scrap Searched 1 | . . 1 Spaces Dug 1 | . 1 . Terrain Destroyed 7 | . 7 . Melee 1 | . 1 . Projectile . | . . . AOE 6 | . 6 . Terrain Rammed . | . . . Walls Destroyed . | . . . Machines Disabled . | . . . Actions | -11 -10 -10 --------- Run | Yrd Mat Sub Total 1686 | . 1053 633 Wait 217 | . 183 34 Move 1272 | . 735 537 Hop . | . . . Pick Up 25 | . 19 6 Fast Attach 11 | . 8 3 Attach 8 | . 6 2 Detach 3 | . 2 1 Swap 11 | . 9 2 Drop 14 | . 11 3 Fire 26 | . 26 . Melee 99 | . 54 45 Ram . | . . . Kick . | . . . Crush . | . . . Escape Stasis . | . . . Rewire . | . . . Trap . | . . . Miscellaneous . | . . . Route ------- -11/Scrapyard -10/Materials (discovered 6 exits: [*Mat x3] / [*Min x2] / *Sub) -10/Subcaves History --------- Turn | Location | Event 1 | -11/Scrapyard | Discovered new exit (range 0) 1 | -11/Scrapyard | Entered Materials 301 | -10/Materials | Build established: Mutant 355 | -10/Materials | Discovered new exit (range 10) 474 | -10/Materials | Discovered new exit (range 14) 1237 | -10/Materials | Discovered new exit (range 3) 1453 | -10/Materials | Core integrity fell below 50% 1507 | -10/Materials | Discovered new exit (range 9) 1881 | -10/Materials | Repaired EM Pulse Gun 2075 | -10/Materials | Discovered new exit (range 7) 2283 | -10/Materials | Discovered new exit (range 9) 2312 | -10/Materials | Entered Subcaves 2438 | -10/Subcaves | Shifting Twisted Machinery released Mak. Spear 2650 | -10/Subcaves | A swath of the cavern ceiling suddenly collapsed 3290 | -10/Subcaves | Core integrity fell below 20% 3667 | -10/Subcaves | Build established: Scavenger-Mutant 3960 | -10/Subcaves | Visited Clippyterm 3970 | -10/Subcaves | Learned Factory stockpile data 4175 | -10/Subcaves | Destroyed by M5-ROD(R) with Subdweller Laser Last Messages --------------- 03970_ Current location identified: Subcaves >>Record "Clippyterm" Welcome to Clippyterm v0.53, my misguided attempt to resurrect an ancient AI. I give up. There must be something fundamentally wrong with the algorithm, because no matter how much data I collect to feed it, half the time it still manages to suggest unhelpful sample queries and responses. --DD-NU8 >>Record "Finders Keepers" It looks like you're interested in reappropriating Complex 0b10 components, would you like help? Data stored: Factory stockpile data. >>Record "Botnets" It looks like you seek to become a more effective hacker when it comes to the important hacks, and I heartily recommend installing Trojan(Botnet) on at least one or two Terminals to improve your odds of success elsewhere. >>Record "Hexidium" It looks like you're searching for the Unchained HQ. I could tell you where it is but then I'd have to kill you. 04125_ A9-NAR(R) destroyed. 04139_ Subatomizers dissect the Sub. Power Source. 04140_ M5-ROD(R) suffers critical hit (Impale). 04152_ Subatomizers dissect the Sub. Power Source. 04168_ Critical hit (Destroy). 04168_ Lgt. Armor Plating destroyed. 04170_ Destroyed Scrap Shield. 04173_ Lgt. Treads destroyed. Map ----- +----------------------------------------------------+ | ?????????????????????????????????????????????????? | | ?????????????????????????????????????????????????? | | ?????????????????????????????????????????????????? | | ?????????????????????????????????????????????????? | | ?????????????????????????????????????????????????? | | ?????????????????????????????????????????????????? | | ?????????????????????????????????????????????????? | | ?????????????????????????????????????????????????? | | ?????????????????????????????????????????????????? | | ?????????????????????????????????????????????????? | | ?????????????????????????????????????????????????? | | ???????????????????##"???????????????????????????? | | ????????????????####""""?????????? ??????????????? | | ????????????????# ""????????? #??????????????? | | ????????????????# ???????? ???????????????? | | ????????????????? #?##???? #???????????????? | | ?????????????????? ## ???? #???????????????? | | ??????????????????? ???? ##??????????????? | | ????????????????????# "#???# #??????????????? | | ?????????????????????# ""##?# #??????????????? | | ?????????????????????# """## #????????????????? | | ?????????????????????#! #?????????????????? | | ????????????????????##%* ##?????????????????? | | ???????????????????##!= ##??????????????????? | | ???????????????????# ##???????????????????? | | ???????????????????# @ ##????????????????????? | | ???????????????????# R##?????????????????????? | | ####???????????????# ##??????????????????????? | | ##??????????????# ##???????????????????????? | | #??????????????# ##????????????????????????? | | #???????????????## #?????????????????????????? | | #???????????????## #??###???? ??????????????? | | ##??????????????# #?# ##?? #?????????????? | | #?????????????## ## ### #??????????????? | | #?????????????# #??????????????? | | ##?????????????# #???????????????? | | #??????????????# ##???????????????? | | #??????????????### #### ##????????????????? | | #????????????????# #### ##????????????????? | | #???????????????# ## #???????????? | | #####???????????????# #???????????? | | ????????????????????## #???????????? | | ?????????????????????## ## #???????????? | | ??????????????????????## ##? ????????????? | | ???????????????????????# ##?? ### #?? ????????? | | ???????????????????????# #?????## # ????????? | | ???????????????????###### ##??## ???????? | | ??????????????????## #### #?# ??????????? | | ?????????????????## ### ## ?????????????? | | ??????#######???## # #????????????????? | +----------------------------------------------------+ Best States ------------- Heat Dissipation 35 Energy Generation 15 Energy Capacity 250 Matter Stores 300 Matter Capacity 300 Sight Range 16 Terrain Scan Density 10 Armor Coverage 150 Evasion (%) 40 Targeting Accuracy 5 Recoil Reduction 2 Item Schematics ----------------- None Robot Schematics ------------------ None Fabricated ------------ Nothing Alien Tech Used ----------------- None Achievements -------------- None Challenges ------------ None Game ------ Seed MinesnifferStasisSuite Manual? 0 Play Time 00:18:02 Cumulative 151.8 hours Start 2024.12.02 @ 02:34:40 End 2024.12.02 @ 02:48:38 Sessions 1 Manual Loads 0 Difficulty Rogue Special Mode None Game No. 284 Rogue 284 Adventurer 0 Explorer 0 Win Type - Total 0 Types 0/0/0/0/0/0/0/0/0 Lore% 45 Gallery% 41 Achievement% 36 Wizard Run 0 Options --------- Layout 0 ASCII 0 Keyboard 0 Movement Mouse Keybinds 0 Fullscreen 1 Font 24/Smallcaps Map View 91x25 Zoom Use 98% Tactical HUD 1 Map Filters NONE Filters NONE Steam 1 RUN: 505ab0e7-ac44-4d60-b1e5-36b15926fa19